Cogmind - Beta 15 X1 @@@ ROGUE MODE // 2024.11.10 @ 20:03:54 Player: cptwinky Result: Escaped! Performance ------------- Evolutions (9) 4500 Regions Visited (21) 4200 Robots Destroyed (306) 1530 Value Destroyed (14627) 14627 Prototype IDs (56) 1120 Alien Tech Used (1) 200 Bonus (18156) 18156 TOTAL SCORE: 44333 Bonus ------- Triggered High Security 500 High Alert Combat Kills 4493 Follower Combat Kills 3678 Network Hubs Disabled 200 Registered with UFD 300 Met Data Miner 300 Met Warlord at Base 500 MAIN.C Attacked Warlord 500 Warlord Defense Kills 2528 Built Enhanced Grunts 300 A7 Reached Mainframe 300 Met R17 at Cetus 500 Met R17 at Research 2000 Scanned by Researcher 500 Win 3000 Friendly Fire -1443 Cogmind --------- Core Integrity 780/1600 Matter 241/300 Energy 86/100 System Corruption 4% Temperature Cool (0) Movement Core (50) Location To Epsilon Eridani Parts ------- > --- POWER (3) -------- (None) > --- PROPULSION (4) --- (None) > --- UTILITY (12) ----- Experimental Core Analyzer Experimental Core Analyzer Advanced Corruption Screen > --- WEAPON (7) ------- (None) > --- INVENTORY (5) ---- Experimental Matter Compressor (500) Advanced Transmission Jammer Advanced Component Analysis Suite Advanced Remote Datajack Improved Plasma Cutter Peak State ------------ > --- POWER ------------ Particle Reactor Particle Reactor Improved Quantum Reactor > --- PROPULSION ------- Improved Heavy Siege Treads Overtuned Huge Scrapsphere > --- UTILITY ---------- Scrap Suit Advanced Cooling System Huge Storage Unit Experimental Core Analyzer Experimental Core Analyzer Enhanced Scrap Shield Graphene Brace Advanced Force Field Advanced Corruption Screen Long-range Tractor Beam > --- WEAPON ----------- Railgun Railgun Advanced KE Penetrator Overtuned Railgun Overtuned Railgun Helical Railgun Helical Railgun > --- INVENTORY -------- Particle Reactor Particle Reactor Improved Quantum Reactor Improved Quantum Reactor Improved Quantum Reactor Advanced Heavy Siege Treads Scrap Suit Experimental Matter Compressor Advanced Transmission Jammer Heavy Armor Plating Advanced Component Analysis Suite Advanced Variable Charge Gun Railgun Railgun Railgun Railgun Helical Railgun Long-range Missile Launcher Long-range Missile Launcher Advanced Remote Datajack Improved Plasma Cutter [Rating: 203] Favorites ----------- Power Light Angular Momentum Engine Engine Light Angular Momentum Engine Power Core Neutrino Core Reactor Particle Reactor Propulsion Spiked Treads Treads Spiked Treads Wheel Overtuned Scrapsphere Utility Huge Storage Unit Device Scrap Suit Storage Huge Storage Unit Processor Experimental Core Analyzer Hackware Improved Hacking Suite Protection Enhanced Scrap Shield Weapon Battle Rifle Energy Gun Subdweller Laser Energy Cannon Advanced Plasma Cannon Ballistic Gun Battle Rifle Ballistic Cannon Light Cannon Launcher Improved Grenade Launcher Special Weapon CPS Tube Impact Weapon Makeshift Hammer Slashing Weapon Ripper Special Melee Weapon Improved Datajack Build | -11 -10 -10 -8 -6 -6 -6 -6 -5 -5 -5 -5 -5 -5 -4 -4 -4 -4 -3 -3 -2 -1 ------- Run | Yrd Mat Sub Scr Fac Low Low Dat Pro Fac Ext Cet Arc Hub Fac Upp Upp War Pro Res Res Acc Slots Evolved 18 | . . . . 8 . . . . 2 . . . . 2 . . . . 2 2 2 Power 2 | . . . . . . . . . . . . . . 1 . . . . . . 1 Propulsion 2 | . . . . 2 . . . . . . . . . . . . . . . . . Utility 10 | . . . . 2 . . . . 2 . . . . 1 . . . . 2 2 1 Weapon 4 | . . . . 4 . . . . . . . . . . . . . . . . . Parts Attached 197 | 6 6 18 6 11 14 10 1 3 14 15 8 3 . 17 8 . 12 2 10 7 26 Power 24 | 1 . 2 1 1 . 1 . . 2 1 2 . . 4 . . 1 . 2 . 6 Engine 6 | 1 . 2 1 1 . 1 . . . . . . . . . . . . . . . Core 5 | . . . . . . . . . 2 1 1 . . 1 . . . . . . . Reactor 13 | . . . . . . . . . . . 1 . . 3 . . 1 . 2 . 6 Propulsion 22 | 2 . 3 1 3 2 2 . . 2 2 1 . . 1 . . 1 . . . 2 Treads 18 | 2 . 3 . 3 2 2 . . . 2 1 . . . . . 1 . . . 2 Leg . | . . . . . . . . . . . . . . . . . . . . . . Wheel 4 | . . . 1 . . . . . 2 . . . . 1 . . . . . . . Hover . | . . . . . . . . . . . . . . . . . . . . . . Flight . | . . . . . . . . . . . . . . . . . . . . . . Utility 54 | 1 3 2 3 4 3 . . . 4 . 2 1 . 5 3 . 4 . 1 4 14 Device 26 | . . . . 3 2 . . . 4 . 1 1 . 2 3 . 3 . . 3 4 Storage 5 | 1 2 . 1 . . . . . . . . . . . . . . . . . 1 Processor 9 | . . . . . . . . . . . . . . 3 . . 1 . 1 1 3 Hackware 5 | . . . . 1 . . . . . . . . . . . . . . . . 4 Protection 9 | . 1 2 2 . 1 . . . . . 1 . . . . . . . . . 2 Artifact . | . . . . . . . . . . . . . . . . . . . . . . Weapon 97 | 2 3 11 1 3 9 7 1 3 6 12 3 2 . 7 5 . 6 2 7 3 4 Energy Gun 15 | 2 1 3 . . 3 . . . 2 1 1 . . . 2 . . . . . . Energy Cannon 1 | . . . . . . . . 1 . . . . . . . . . . . . . Ballistic Gun 62 | . . 5 . 3 5 7 . 2 4 9 2 . . 6 3 . 3 2 7 2 2 Ballistic Cannon 3 | . 2 . . . 1 . . . . . . . . . . . . . . . . Launcher 4 | . . . 1 . . . . . . 1 . . . . . . 2 . . . . Special Weapon 5 | . . 1 . . . . . . . . . 1 . . . . . . . 1 2 Impact Weapon 1 | . . 1 . . . . . . . . . . . . . . . . . . . Slashing Weapon 3 | . . 1 . . . . . . . . . 1 . 1 . . . . . . . Piercing Weapon . | . . . . . . . . . . . . . . . . . . . . . . Special Melee Weapon 3 | . . . . . . . 1 . . 1 . . . . . . 1 . . . . Unidentified Prototypes 12 | . . . . . 2 1 . . . . 4 . . . . . 4 . . . 1 Corrupted Parts 2 | . . . . . . . . . . . . . . . . . . 2 . . . System Corruption 3 | . . . . . . . . . . . . . . . . . . 3 . . . Parts Lost 37 | . . 1 . . . . . . . . . . . . . . . . . . 36 Power 8 | . . . . . . . . . . . . . . . . . . . . . 8 Propulsion 4 | . . 1 . . . . . . . . . . . . . . . . . . 3 Utility 10 | . . . . . . . . . . . . . . . . . . . . . 10 Weapon 15 | . . . . . . . . . . . . . . . . . . . . . 15 Highest Loss Streak 33 | . . 1 . . . . . . . . . . . . . . . . . . 33 To Critical Strikes . | . . . . . . . . . . . . . . . . . . . . . . Average Backups 19 | 4 9 13 16 18 20 19 21 21 21 21 21 20 21 21 21 21 22 24 24 23 20 Power . | . 1 . . . 1 1 1 1 1 1 1 1 1 . . . . . 1 1 2 Propulsion 1 | 2 2 2 1 2 2 2 2 2 . 1 1 1 1 1 1 1 . . . . . Utility 10 | . 3 5 8 11 10 9 11 11 12 13 12 12 13 14 14 13 13 14 13 12 8 Weapon 4 | 1 2 3 3 2 3 3 4 4 4 4 3 3 3 3 4 5 5 7 7 7 6 Tool/Special . | . . . . . . . . . . . . . . . . . . . . . . Unused Backups 65 | 1 6 4 8 3 4 19 . . 3 . 3 . . 4 2 . 1 . 2 2 3 Power 4 | . . 1 . . . 1 . . . . . . . . . . . . 1 . 1 Propulsion 12 | 1 4 1 . . 1 2 . . . . 2 . . 1 . . . . . . . Utility 30 | . 1 1 4 3 1 6 . . 3 . 1 . . 2 2 . 1 . 1 2 2 Weapon 17 | . 1 1 3 . 2 10 . . . . . . . . . . . . . . . Tool/Special 2 | . . . 1 . . . . . . . . . . 1 . . . . . . . Average Slot Usage (%) 90 | . 99 100 100 97 90 92 93 92 87 88 84 81 83 83 79 80 77 75 79 82 82 Engine 5 | . 14 14 14 6 6 5 6 6 . . . . . . . . . . . . . Reactor 2 | . . . . . . . . . . . 1 5 5 6 10 10 7 5 7 8 10 Treads 18 | . 28 28 27 25 26 25 25 25 11 11 6 5 5 5 5 5 5 5 4 4 2 Wheel 2 | . . . . . . . . . 10 11 11 11 11 9 5 5 5 5 4 4 2 Device 8 | . . . . 11 10 7 6 6 11 11 10 9 11 11 12 15 12 10 13 15 18 Storage 7 | . 14 14 14 6 6 6 6 6 5 5 5 5 5 5 5 5 5 5 4 4 2 Processor 1 | . . . . . . . . . . . . . . 3 2 . 2 5 8 12 8 Protection 6 | . 13 14 14 6 2 4 6 6 5 5 5 5 5 5 5 5 5 5 4 4 2 Energy Gun 4 | . 12 9 8 . 5 2 . . 7 1 . . . . 4 5 4 . . . . Ballistic Gun 27 | . . 5 14 32 30 35 38 40 29 34 38 36 38 34 30 30 28 34 30 28 25 Ballistic Cannon 1 | . 15 9 . . . . . . . . . . . . . . . . . . . Peak Build Rating 203 | 6 8 16 24 48 56 61 57 63 87 93 116 119 116 140 140 137 145 144 161 178 203 Average Rating 76 | 5 7 11 18 43 50 55 56 58 81 87 107 114 116 130 137 136 137 139 152 175 191 On Entrance 85 | . 6 8 14 24 48 56 57 57 63 87 93 115 116 116 136 137 137 140 138 161 178 Naked Turns . | . . . . . . . . . . . . . . . . . . . . . . Heaviest Build 214 | 13 34 36 103 118 126 125 128 131 138 150 156 156 156 174 173 169 175 168 179 194 214 Greatest Support 90 | 40 40 40 40 82 90 88 88 88 16 43 16 16 16 20 20 20 20 20 20 80 75 Greatest Overweight (x) 10 | . . . 2 1 1 1 1 1 8 9 9 9 9 10 8 8 8 8 8 9 10 Average Overweight (x) 4 | . . . . 1 1 1 1 1 8 8 8 9 9 9 8 8 8 8 8 7 9 Largest Inventory Capacity 25 | 8 15 15 25 25 25 25 25 25 25 25 25 25 25 25 25 25 25 25 25 25 25 Average Capacity 23 | 7 10 15 18 25 25 25 25 25 25 25 25 25 25 25 25 25 25 25 25 25 24 Most Carried 25 | 8 10 15 25 25 25 25 25 25 25 25 25 25 24 25 25 25 25 25 25 25 25 Average Carried 22 | 4 9 14 17 22 24 23 25 24 24 24 24 24 24 24 24 24 24 24 24 24 23 Final Capacity 25 | 8 15 15 25 25 25 25 25 25 25 25 25 25 25 25 25 25 25 25 25 25 5 Final Carried 25 | 8 10 15 25 25 24 25 25 25 25 25 24 24 24 25 25 25 25 25 25 25 5 Class Distribution -------------------- 28% | Cobbler-Executioner 22% | Scavenger-Executioner 16% | Derelict-Executioner 11% | Mutant 9% | Derelict-Mutant 8% | Commander-Executioner Dominant Class ---------------- Mutant | -10/Materials Mutant | -10/Subcaves Derelict-Mutant | -8/Scraptown Derelict-Executioner | -6/Factory Derelict-Executioner | -6/Lower Caves Cobbler-Executioner | -6/Lower Caves Cobbler-Executioner | -6/Data Miner Cobbler-Executioner | -5/Proximity Caves Derelict-Executioner | -5/Factory Commander-Executioner | -5/Extension Commander-Executioner | -5/Cetus Commander-Executioner | -5/Archives Commander-Executioner | -5/Hub_04(d) Scavenger-Executioner | -4/Factory Scavenger-Executioner | -4/Upper Caves Scavenger-Executioner | -4/Upper Caves Scavenger-Executioner | -4/Warlord Scavenger-Executioner | -3/Proximity Caves Scavenger-Executioner | -3/Research Scavenger-Executioner | -2/Research Scavenger-Executioner | -1/Access Resources | -11 -10 -10 -8 -6 -6 -6 -6 -5 -5 -5 -5 -5 -5 -4 -4 -4 -4 -3 -3 -2 -1 ----------- Run | Yrd Mat Sub Scr Fac Low Low Dat Pro Fac Ext Cet Arc Hub Fac Upp Upp War Pro Res Res Acc Matter Collected 18873 | 240 117 554 332 276 1936 2127 . 273 1075 2007 533 222 . 1031 541 81 1279 441 246 480 5082 Remotely 2533 | . . . . . . . . . . . 124 . . 210 . . 488 . . . 1711 Salvage Created 19615 | 60 260 430 . 201 329 1179 . 278 1151 2111 333 66 . 2290 605 176 754 393 177 1009 7813 Parts 842 | 9 23 35 . 12 12 17 . 18 49 90 12 7 . 104 32 9 18 17 15 53 310 Haulers Intercepted 8 | . 2 . . . . . . . 1 . . . . 3 . . . . . 1 1 Recyclers Shooed 7 | . . . . 1 . . . . . 1 . . . . . . . . . . 5 Parts Field Recycled . | . . . . . . . . . . . . . . . . . . . . . . Retrieved Matter . | . . . . . . . . . . . . . . . . . . . . . . Parts Self-Destructed 125 | . . 14 . . 18 12 . 16 . . . . . . 25 9 . 31 . . . Prevented 2 | . . . . . . . . . . . . . . . . . . 2 . . . Kills | -11 -10 -10 -8 -6 -6 -6 -6 -5 -5 -5 -5 -5 -5 -4 -4 -4 -4 -3 -3 -2 -1 ------- Run | Yrd Mat Sub Scr Fac Low Low Dat Pro Fac Ext Cet Arc Hub Fac Upp Upp War Pro Res Res Acc Combat Hostiles Destroyed 235 | . 4 13 . 3 6 8 . 11 16 23 4 . . 18 9 3 20 3 6 8 80 Guns 189 | . 1 8 . 3 1 8 . 5 15 20 4 . . 18 9 3 3 3 3 8 77 Cannons 9 | . 3 5 . . . . . . . 1 . . . . . . . . . . . AOE 37 | . . . . . 5 . . 6 1 2 . . . . . . 17 . 3 . 3 Classes Destroyed 31 | 1 4 6 . 2 2 1 . 2 1 2 . . . 2 1 . 4 . . . 3 Worker 13 | . 1 . . . . . . . 2 . . . . 3 . . . . . . 7 Builder 25 | . . . . . . . . . 1 . . . . 4 . . . . . 1 19 Tunneler 4 | 3 . . . . . . . . . . . . . . . . . . . . 1 Hauler 8 | . 2 . . . . . . . 1 . . . . 3 . . . . . 1 1 Recycler 15 | . . . . . . . . . 1 5 . . . 4 . . . . . . 5 Carrier 1 | . . . . . . . . . . . . . . . . . . . . . 1 Mechanic 5 | . 1 . . 1 . . . . . . . . . . . . . . . . 3 Operator 4 | . . . . 1 . . . . 1 . . 2 . . . . . . . . . Drone 2 | . . . . . . . . 2 . . . . . . . . . . . . . Watcher 2 | . . . . . . . . . . 1 1 . . . . . . . . . . Swarmer 30 | . . 7 . . 5 2 . 6 . . . . . 1 2 1 1 . 5 . . Saboteur 5 | . . . . . . . . . . . . . . . . . 1 . . . 4 Grunt 92 | . 4 . . 2 . 5 . 1 10 8 . . . 7 4 1 9 1 . 4 36 Brawler 8 | . . . . . . . . . . . . . . . . . 2 . . 1 5 Duelist 6 | . . . . . . . . . . . . . . 2 . . . . . . 4 Protector 6 | . . . . . . . . . . . . . . . . . 2 . . . 4 Researcher 1 | . . . . . . 1 . . . . . . . . . . . . . . . Sentry 22 | . . . . . 1 1 . 1 2 10 . . . 1 2 1 . . . 1 2 Demolisher 1 | . . . . . . . . . . . . . . . . . 1 . . . . Hunter 18 | . . . . . . . . 1 2 3 . . . 2 . . . . . 2 8 Programmer 29 | . . . . 1 . . . . 2 1 . . . 5 . . 4 2 1 . 13 Behemoth 1 | . . . . . . . . . . 1 . . . . . . . . . . . Cetus Guard 4 | . . . . . . . . . . . 4 . . . . . . . . . . Investigator 2 | . . . . . . . . . . . . . . . . . . . . . 2 Striker 1 | . . . . . . . . . . . . . . . . . . . . . 1 Executioner 3 | . . . . . . . . . . . . . . . . . . . . . 3 Artisan 1 | . . 1 . . . . . . . . . . . . . . . . . . . Cobbler 1 | . . 1 . . . . . . . . . . . . . . . . . . . Subdweller 6 | . . 6 . . . . . . . . . . . . . . . . . . . Scientist 1 | . . 1 . . . . . . . . . . . . . . . . . . . Scrapoid 3 | . . . . . . . . . . . . . . 1 . . . . . 2 . Zionite 1 | . . 1 . . . . . . . . . . . . . . . . . . . Decomposer 1 | . . . . . 1 . . . . . . . . . . . . . . . . Packrat 2 | . . . . . 2 . . . . . . . . . . . . . . . . Surgeon 1 | . . . . . . . . . . . . . . . . . 1 . . . . Thug 2 | . . . . . . . . . . . 1 . . . . . 1 . . . . Mutant 1 | . . . . . . . . . . . . . . . 1 . . . . . . Best Kill Streak 31 | 2 4 4 . 2 3 3 . 4 3 3 3 1 . 7 8 3 9 2 5 3 31 Combat Bots Only 26 | . 2 4 . 2 3 3 . 4 3 3 2 . . 4 8 3 9 2 5 3 26 Max Kills in Single Turn 4 | 1 2 2 . 1 3 1 . 4 1 2 2 1 . 3 1 1 4 1 3 2 4 Gunslinging 1 | . . 1 . . . . . . . . . . . 1 . . . . . 1 1 Exploded 4 | . . . . . 3 . . 4 1 2 . . . . . . 4 . 3 . 2 Melee . | . . . . . . . . . . . . . . . . . . . . . . Uniques/NPCs Destroyed . | . . . . . . . . . . . . . . . . . . . . . . Combat | -11 -10 -10 -8 -6 -6 -6 -6 -5 -5 -5 -5 -5 -5 -4 -4 -4 -4 -3 -3 -2 -1 -------- Run | Yrd Mat Sub Scr Fac Low Low Dat Pro Fac Ext Cet Arc Hub Fac Upp Upp War Pro Res Res Acc Hostile Shots Fired 1378 | . 13 70 . 28 44 37 . 40 88 112 23 . . 91 56 7 73 28 18 4 646 Missed 406 | . 4 18 . 7 17 13 . 17 21 35 11 . . 32 17 . 19 9 5 3 178 Damage Taken 19444 | . 201 921 . 286 359 516 . 393 1351 1676 243 27 42 1572 825 153 1323 418 358 85 8695 Core 1652 | . 10 157 . 31 25 . . . 204 42 29 . . 62 64 . 101 45 44 18 820 Absorbed by Shields 2898 | . . . . . . . . . . 35 77 . . . . . . . . . 2786 Regen/Repaired (Parts) 1250 | . . . 215 . . . . . 467 13 . . . 25 6 . 190 . 122 . 212 Core Remaining (%) 77 | 100 . . 33 . . . . 93 . . . . 72 . . . . 76 96 98 48 Volleys Fired 553 | 5 15 88 . 12 13 20 . 11 49 63 11 5 . 28 14 5 18 12 5 13 166 Largest 7 | 2 2 2 . 5 6 7 . 7 7 7 7 7 . 7 7 7 7 7 7 7 7 Hottest 306 | 90 90 120 . 138 218 206 . 263 301 306 240 230 . 237 228 285 283 238 240 253 261 Shots Fired 2518 | 10 30 146 . 51 53 108 . 59 259 358 72 27 . 178 92 27 53 42 26 72 855 Gun 2383 | 10 16 93 . 51 49 108 . 53 256 345 72 26 . 177 92 27 25 42 25 71 845 Cannon 71 | . 14 44 . . . . . 4 . 9 . . . . . . . . . . . Launcher 48 | . . . . . 4 . . 2 3 4 . . . 1 . . 28 . 1 . 5 Special 16 | . . 9 . . . . . . . . . 1 . . . . . . . 1 5 Kinetic 2232 | . 14 89 . 51 40 90 . 53 222 312 71 26 . 177 92 22 23 35 25 71 819 Thermal 231 | 10 16 57 . . 9 18 . 4 34 42 1 . . . . 5 2 7 . . 26 Explosive 48 | . . . . . 4 . . 2 3 4 . . . 1 . . 28 . 1 . 5 Electromagnetic . | . . . . . . . . . . . . . . . . . . . . . . Robot Hit Streak 21 | 5 5 21 . 6 7 11 . 6 18 20 10 4 . 9 7 8 7 7 4 11 15 Robot Miss Streak 9 | 1 6 2 . 3 3 3 . 3 6 4 3 4 . 5 3 4 7 4 4 5 9 Penetration Max 2 | . . . . . . . . . 1 . 1 1 . 2 1 . . 1 . 2 2 Secondary Targets 60 | . . 1 . 1 . 2 . 1 2 . 2 . . 7 4 . 1 2 . 4 33 Max Gunslinging Chain 2 | . . 1 . 1 . 1 . 1 1 . 1 . . 1 1 . 1 1 . 2 2 Shots Hit Robots 1459 | 6 18 105 . 30 26 84 1 29 159 234 46 16 . 97 54 16 29 23 12 43 431 Core Hits 840 | 3 13 33 . 13 16 38 . 17 62 83 21 7 . 68 25 7 67 14 9 28 316 Critical Kills 30 | . . . . . . . . 1 1 1 2 1 . 4 . . 1 . . 1 18 Critical Parts Destroyed 51 | . . . . . 1 . . . 6 1 1 2 . 9 4 1 . . 1 . 25 Critical Strikes 90 | . . 4 . . 1 2 . 1 7 4 3 3 . 13 4 1 1 . 1 2 43 Burn 3 | . . . . . . 2 . . . 1 . . . . . . . . . . . Destroy 83 | . . . . . 1 . . 1 7 3 3 3 . 13 4 1 1 . 1 2 43 Blast 4 | . . 4 . . . . . . . . . . . . . . . . . . . Melee Attacks 135 | . . 54 . 4 . 15 1 . 9 38 . 3 . 2 . . 1 4 4 . . Impact 48 | . . 48 . . . . . . . . . . . . . . . . . . . Slashing 45 | . . 6 . 4 . 15 . . 9 . . 2 . 2 . . . 4 3 . . Piercing . | . . . . . . . . . . . . . . . . . . . . . . Sneak Attacks 47 | . . 1 . . . 1 1 . 1 38 . 3 . . . . 1 . 1 . . Combat Hostiles . | . . . . . . . . . . . . . . . . . . . . . . Follow-up Attacks . | . . . . . . . . . . . . . . . . . . . . . . Damage Inflicted 47949 | 86 440 1969 . 567 806 1997 . 850 4090 5098 1387 633 . 3699 1387 372 4723 907 616 1177 17145 Guns 37057 | 86 104 1330 . 566 544 1079 . 478 3383 4344 1387 406 . 3372 1387 372 276 568 235 1177 15963 Cannons 1008 | . 139 562 . . . . . 35 . 272 . . . . . . . . . . . Explosions 8233 | . 197 . . . 262 . . 337 618 482 . . . 327 . . 4447 . 381 . 1182 Melee 1650 | . . 77 . . . 918 . . 89 . . 227 . . . . . 339 . . . Ramming 1 | . . . . 1 . . . . . . . . . . . . . . . . . Kinetic 35329 | . 139 1256 . 566 409 822 . 478 2768 3836 1387 406 . 3372 1387 306 254 568 235 1177 15963 Thermal 3005 | 86 104 636 . . 135 257 . 35 884 780 . . . . . 66 22 . . . . Explosive 7928 | . 197 . . . 262 . . 337 349 482 . . . 327 . . 4447 . 381 . 1146 Electromagnetic 36 | . . . . . . . . . . . . . . . . . . . . . 36 Impact . | . . . . . . . . . . . . . . . . . . . . . . Slashing 1650 | . . 77 . . . 918 . . 89 . . 227 . . . . . 339 . . . Piercing . | . . . . . . . . . . . . . . . . . . . . . . Highest Corruption 7 | . . . . . . . . . 3 7 7 7 1 3 3 . 2 7 . . 4 Average Corruption 3 | . . . . . . . . . 2 4 7 4 1 2 1 . 1 4 . . 3 Corruption Purged 10 | . . . . . . . . . . . . 7 . . 3 . . . . . . Corruption Blocked 14 | . . . . . . . . . . . . . . . . . . . . . 14 Effects 172 | . . . . . . . . . 14 46 12 11 1 23 . . 3 13 . . 49 Message Errors 30 | . . . . . . . . . 2 12 . 1 . 4 . . . 4 . . 7 Matter Fused 42 | . . . . . . . . . 5 9 3 4 . 6 . . 1 2 . . 12 Heat Flow Errors 30 | . . . . . . . . . 1 8 2 1 . 2 . . . 4 . . 12 Energy Discharges 20 | . . . . . . . . . 3 2 1 3 . 4 . . . . . . 7 Parts Rejected 3 | . . . . . . . . . . 1 1 . . . . . . . . . 1 Parts Fused 1 | . . . . . . . . . . . . . . . . . . . . . 1 Data Loss (minor) 17 | . . . . . . . . . 1 4 2 . . 4 . . 2 2 . . 2 Data Loss (major) 7 | . . . . . . . . . . 4 . . 1 . . . . . . . 2 Misfires 8 | . . . . . . . . . 2 2 2 . . 2 . . . . . . . Alerts 5 | . . . . . . . . . . 1 . 2 . . . . . 1 . . 1 Weapon Failures 9 | . . . . . . . . . . 3 1 . . 1 . . . . . . 4 Overload Shots 8 | . . . . . . . . . . . 1 . . . . . . . . . 7 Overflow Damage 873 | . 8 . . . 10 363 . 46 53 . . 70 . 38 . . 98 109 33 . 45 Projectiles 30 | . . . . . . . . 30 . . . . . . . . . . . . . Explosions 301 | . 8 . . . 10 . . 16 53 . . . . 38 . . 98 . 33 . 45 Melee 542 | . . . . . . 363 . . . . . 70 . . . . . 109 . . . Knockbacks 11 | . 3 8 . . . . . . . . . . . . . . . . . . . Impact . | . . . . . . . . . . . . . . . . . . . . . . Kinetic 11 | . 3 8 . . . . . . . . . . . . . . . . . . . Secondary . | . . . . . . . . . . . . . . . . . . . . . . Self-Inflicted Damage 354 | . 80 . . . . . . . . 31 . . . . . . 42 . . . 201 Shots 11 | . 1 . . . . . . . . 1 . . . . . . 4 . . . 5 Rammed 3 | . 1 . . 2 . . . . . . . . . . . . . . . . . Targets Rammed 3 | . 1 . . 2 . . . . . . . . . . . . . . . . . Kicked . | . . . . . . . . . . . . . . . . . . . . . . Crushed . | . . . . . . . . . . . . . . . . . . . . . . Highest Temperature 489 | 90 159 27 . 178 168 149 . 208 410 288 114 183 . 256 149 146 108 489 . 66 369 Average Temperature 91 | 36 56 15 . 67 61 47 . 78 91 85 29 93 . 31 38 64 41 141 . 34 127 Received Heat Transfer 2486 | . 69 183 . 159 94 144 . 54 318 271 . . . 123 189 18 66 55 9 18 716 Effects 12 | . . . . . . . . . 3 1 . . . 1 . . . 2 . . 5 Energy Bleed 6 | . . . . . . . . . . . . . . 1 . . . . . . 5 Interference 4 | . . . . . . . . . 3 1 . . . . . . . . . . . Damage (minor) 1 | . . . . . . . . . . . . . . . . . . 1 . . . Damage (major) 1 | . . . . . . . . . . . . . . . . . . 1 . . . Siege Activations 4 | . . . . . . . . . . . . . . 2 . 1 . . 1 . . Total Turns 36 | . . . . . . . . . . . . . . 10 . 20 . . 6 . . Longest Duration 20 | . . . . . . . . . . . . . . 7 . 20 . . 6 . . Martial Activations . | . . . . . . . . . . . . . . . . . . . . . . Shielding Activations . | . . . . . . . . . . . . . . . . . . . . . . Robots Disrupted . | . . . . . . . . . . . . . . . . . . . . . . Combat Hostiles . | . . . . . . . . . . . . . . . . . . . . . . Robots Corrupted . | . . . . . . . . . . . . . . . . . . . . . . Combat Hostiles . | . . . . . . . . . . . . . . . . . . . . . . Parts Fried 1 | . . . . . . . . . . . . . . 1 . . . . . . . Impact Corruptions . | . . . . . . . . . . . . . . . . . . . . . . Robots Melted . | . . . . . . . . . . . . . . . . . . . . . . Combat Hostiles . | . . . . . . . . . . . . . . . . . . . . . . Parts Melted 5 | . . . . . 1 . . . . . . . . 2 . . . . . 2 . Heat Transferred 5049 | 235 287 1000 . . 300 703 . 50 1075 1251 . . . . . 111 37 . . . . Parts Sabotaged . | . . . . . . . . . . . . . . . . . . . . . . Parts Stolen . | . . . . . . . . . . . . . . . . . . . . . . Parts Stripped . | . . . . . . . . . . . . . . . . . . . . . . Power Chain Reactions . | . . . . . . . . . . . . . . . . . . . . . . Alert | -11 -10 -10 -8 -6 -6 -6 -6 -5 -5 -5 -5 -5 -5 -4 -4 -4 -4 -3 -3 -2 -1 ------- Run | Yrd Mat Sub Scr Fac Low Low Dat Pro Fac Ext Cet Arc Hub Fac Upp Upp War Pro Res Res Acc Maximum Alert Level 5 | . . . . . . . . . 2 2 2 1 . 3 . . . . . 2 5 Low Security (%) 38 | 100 100 . . 100 . . . . . 55 . 49 100 17 . . . . 100 25 5 Level 1 33 | . . . . . . . . . 70 44 90 50 . 16 . . . . . 38 40 Level 2 13 | . . . . . . . . . 29 . 9 . . 45 . . . . . 36 6 Level 3 7 | . . . . . . . . . . . . . . 21 . . . . . . 17 Level 4 1 | . . . . . . . . . . . . . . . . . . . . . 7 Level 5 . | . . . . . . . . . . . . . . . . . . . . . . High Security 4 | . . . . . . . . . . . . . . . . . . . . . 21 Max Security . | . . . . . . . . . . . . . . . . . . . . . . Peak Influence 3770 | 5 117 . . 81 . . . . 513 402 415 289 153 939 . . . . 149 496 3770 Initial 329 | . . . . . . . . . 329 159 214 138 38 29 . . . . . . 297 Average 422 | 1 31 . . 28 . . . . 369 218 310 201 86 500 . . . . 36 292 1015 Influence Increases 12511 | 15 169 180 . 353 242 248 . 210 1003 1181 381 251 255 1824 160 60 385 80 231 744 4539 Destroy 0b10 Robot/C 5900 | . 80 140 . 160 180 180 . 180 320 580 160 80 80 660 160 60 360 60 120 260 2080 Destroy 0b10 Robot/NC 550 | 15 20 . . 15 . 10 . 10 30 45 10 10 5 100 . . 10 10 . 15 245 Destroy Leader 890 | . 24 10 . 50 30 20 . 20 72 84 . . 32 120 . . . 10 20 54 344 Allied During Kill 1968 | . . . . 48 32 8 . . . 276 170 90 117 504 . . . . . 131 592 Successful Hack 307 | . 6 . . 46 . . . . 68 5 . . 5 48 . . . . 36 . 93 Disable Machine 480 | . 15 . . 15 . . . . 45 15 15 45 . 105 . . . . 15 30 180 Anti-Garrison Action 350 | . . . . . . . . . . . . . . . . . . . . 200 150 Destroy Structure 1376 | . 24 . . 4 . . . . 78 116 26 26 16 242 . . . . 40 54 750 Advance Influence 300 | . . . . . . . . . 300 . . . . . . . . . . . . Partial Spotted 15 | . . . . . . . . . . . . . . 15 . . . . . . . Lose Combat Pursuer 375 | . . 30 . 15 . 30 . . 90 60 . . . 30 . . 15 . . . 105 Influence Decreases 7363 | 15 124 198 . 320 262 248 . 163 706 956 250 278 233 944 434 301 154 80 231 248 1218 Time Decay 5700 | 15 124 198 . 300 262 228 . 163 556 616 190 238 170 614 434 301 154 80 231 188 638 Lost Part 360 | . . . . . . . . . . . . . . . . . . . . . 360 Lost Ally 553 | . . . . 20 . 20 . . . 40 60 40 63 180 . . . . . 60 70 Purge Threat 750 | . . . . . . . . . 150 300 . . . 150 . . . . . . 150 Squads Dispatched 74 | . 1 . . 7 . . . . 5 3 . . 3 7 . . . . 3 2 43 Investigation 12 | . . . . 2 . . . . . 1 . . 1 1 . . . . 1 1 5 Extermination 13 | . . . . 1 . . . . 2 . . . 1 4 . . . . . . 5 Reinforcement 15 | . 1 . . 1 . . . . 2 2 . . . 1 . . . . 2 1 5 Assault 29 | . . . . . . . . . . . . . 1 1 . . . . . . 27 Garrison 5 | . . . . 3 . . . . 1 . . . . . . . . . . . 1 Intercept . | . . . . . . . . . . . . . . . . . . . . . . Searches Triggered . | . . . . . . . . . . . . . . . . . . . . . . Construction Impeded 6 | . . . . . . . . . 1 2 . . . . . . . . . . 3 Haulers Reinforced 1 | . . . . . . . . . . . . . . . . . . . . . 1 Active Scanning Responses . | . . . . . . . . . . . . . . . . . . . . . . Cargo Convoy Interrupts . | . . . . . . . . . . . . . . . . . . . . . . Stealth | -11 -10 -10 -8 -6 -6 -6 -6 -5 -5 -5 -5 -5 -5 -4 -4 -4 -4 -3 -3 -2 -1 --------- Run | Yrd Mat Sub Scr Fac Low Low Dat Pro Fac Ext Cet Arc Hub Fac Upp Upp War Pro Res Res Acc Distress Signals 12 | . . . . 1 . . . . 1 2 2 . . 4 . . . . 2 . . Communications Jammed 4 | . . . . . . . . . 3 . . . . 1 . . . . . . . Distress Signals 3 | . . . . . . . . . 2 . . . . 1 . . . . . . . Times Spotted 442 | . 7 16 . 13 9 10 . 12 28 36 9 4 2 40 9 3 46 10 8 14 166 Peak Tracking Total 16 | . 2 6 . 3 3 4 . 5 5 4 5 1 1 5 7 3 12 5 5 5 16 Tactical Retreats 23 | . . 4 . 1 . 2 . . 4 4 . . . 2 . . 1 . . . 5 Traps | -11 -10 -10 -8 -6 -6 -6 -6 -5 -5 -5 -5 -5 -5 -4 -4 -4 -4 -3 -3 -2 -1 ------- Run | Yrd Mat Sub Scr Fac Low Low Dat Pro Fac Ext Cet Arc Hub Fac Upp Upp War Pro Res Res Acc Traps Triggered 19 | . . 1 . . . . . . 1 7 . . . 5 . . . . 1 2 2 Indirectly . | . . . . . . . . . . . . . . . . . . . . . . Trap Hack Attempts . | . . . . . . . . . . . . . . . . . . . . . . Triggered . | . . . . . . . . . . . . . . . . . . . . . . Disarmed . | . . . . . . . . . . . . . . . . . . . . . . Reprogrammed . | . . . . . . . . . . . . . . . . . . . . . . Reused . | . . . . . . . . . . . . . . . . . . . . . . Traps Extracted . | . . . . . . . . . . . . . . . . . . . . . . Installed . | . . . . . . . . . . . . . . . . . . . . . . Triggered . | . . . . . . . . . . . . . . . . . . . . . . Machines | -11 -10 -10 -8 -6 -6 -6 -6 -5 -5 -5 -5 -5 -5 -4 -4 -4 -4 -3 -3 -2 -1 ---------- Run | Yrd Mat Sub Scr Fac Low Low Dat Pro Fac Ext Cet Arc Hub Fac Upp Upp War Pro Res Res Acc Machines Disabled 37 | . 1 . . 1 . . . . 3 2 1 3 . 7 3 . . . 1 2 13 Max in Single Turn 2 | . 1 . . 1 . . . . 1 1 1 1 . 2 1 . . . 1 . 1 Garrison Access 4 | . . . . . . . . . . . . . 1 . . . . . 1 1 1 Network Hub 1 | . . . . . . . . . . . . . 1 . . . . . . . . Machines Repaired . | . . . . . . . . . . . . . . . . . . . . . . Machines Dismantled 1 | . . . . . . . . . . . . . . . . . . . . . 1 Machines Sabotaged . | . . . . . . . . . . . . . . . . . . . . . . Overloaded Fab Kills . | . . . . . . . . . . . . . . . . . . . . . . Hacking | -11 -10 -10 -8 -6 -6 -6 -6 -5 -5 -5 -5 -5 -5 -4 -4 -4 -4 -3 -3 -2 -1 --------- Run | Yrd Mat Sub Scr Fac Low Low Dat Pro Fac Ext Cet Arc Hub Fac Upp Upp War Pro Res Res Acc Machines Accessed 66 | . 2 2 3 6 . 2 3 . 8 5 1 . 1 10 2 1 5 . 6 1 8 Terminals 29 | . 2 . . 2 . 1 . . 3 5 1 . 1 6 1 . . . 2 . 5 Fabricators 7 | . . . . 1 . . . . 2 . . . . 2 . . . . 1 . 1 Repair Stations 5 | . . . . 1 . . . . 2 . . . . 1 . . . . 1 . . Recycling Units 4 | . . . . 1 . . . . . . . . . 1 . . . . 1 . 1 Scanalyzers . | . . . . . . . . . . . . . . . . . . . . . . Garrison Access 5 | . . . . 1 . . . . 1 . . . . . . . . . 1 1 1 Total Hacks 221 | . 3 5 28 13 . 2 23 . 24 10 1 . 5 47 6 1 10 . 14 3 26 Successful 128 | . 1 5 28 5 . 2 23 . 15 3 . . 2 11 6 1 10 . 7 1 8 Failed 93 | . 2 . . 8 . . . . 9 7 1 . 3 36 . . . . 7 2 18 Catastrophic 24 | . 1 . . 3 . . . . 3 1 . . . 11 . . . . 3 . 2 Database Lockouts . | . . . . . . . . . . . . . . . . . . . . . . Manual 71 | . 3 . . 6 . . . . 7 5 1 . 5 27 . . 1 . 6 3 7 Terminals 92 | . 3 . . 5 . 1 . . 9 10 1 . 5 31 5 . . . 5 . 17 Fabricators 17 | . . . . 2 . . . . 3 . . . . 8 . . . . 2 . 2 Repair Stations 19 | . . . . 2 . . . . 10 . . . . 3 . . . . 4 . . Recycling Units 13 | . . . . 2 . . . . . . . . . 5 . . . . 2 . 4 Scanalyzers . | . . . . . . . . . . . . . . . . . . . . . . Garrison Access 11 | . . . . 2 . . . . 2 . . . . . . . . . 1 3 3 Terminal Hacks 98 | . 1 5 28 2 . 2 23 . 3 2 . . . 7 6 1 10 . 1 . 7 Record 53 | . . 4 28 . . 1 6 . . . . . . . 5 . 9 . . . . Part Schematic 11 | . . . . . . . 11 . . . . . . . . . . . . . . Robot Schematic 3 | . . . . . . . 3 . . . . . . . . . . . . . . Robot Analysis 2 | . 1 . . . . . . . . . . . . 1 . . . . . . . Prototype ID Bank 3 | . . . . . . . 3 . . . . . . . . . . . . . . Open Door 4 | . . . . . . 1 . . . . . . . . 1 1 1 . . . . Level Access Points 1 | . . . . . . . . . . . . . . . . . . . . . 1 Branch Access Points 2 | . . . . . . . . . 1 . . . . 1 . . . . . . . Terminal Index 2 | . . . . 1 . . . . . . . . . . . . . . . . 1 Recycling Unit Index 1 | . . . . . . . . . . . . . . 1 . . . . . . . Garrison Index 1 | . . . . . . . . . . . . . . . . . . . . . 1 Alert Level 1 | . . . . . . . . . 1 . . . . . . . . . . . . Unreport Threat 5 | . . . . . . . . . 1 2 . . . 1 . . . . . . 1 Locate Traps 5 | . . . . 1 . . . . . . . . . 2 . . . . . . 2 Maintenance Status 1 | . . . . . . . . . . . . . . . . . . . 1 . . Registered Components 1 | . . . . . . . . . . . . . . . . . . . . . 1 Zone Layout 1 | . . . . . . . . . . . . . . 1 . . . . . . . Derelict Proto ID Bank 1 | . . 1 . . . . . . . . . . . . . . . . . . . Fabricator Hacks 1 | . . . . . . . . . . . . . . 1 . . . . . . . Network Status 1 | . . . . . . . . . . . . . . 1 . . . . . . . Repair Station Hacks 13 | . . . . 1 . . . . 10 . . . . . . . . . 2 . . Scan Component 7 | . . . . 1 . . . . 5 . . . . . . . . . 1 . . Repair 6 | . . . . . . . . . 5 . . . . . . . . . 1 . . Recycling Unit Hacks . | . . . . . . . . . . . . . . . . . . . . . . Scanalyzer . | . . . . . . . . . . . . . . . . . . . . . . Garrison Access Hacks 1 | . . . . . . . . . . . . . . . . . . . 1 . . Seal Access 1 | . . . . . . . . . . . . . . . . . . . 1 . . Unauthorized Hacks 15 | . . . . 2 . . . . 2 1 . . 2 3 . . . . 3 1 1 Terminals 6 | . . . . . . . . . 1 1 . . 2 . . . . . 1 . 1 Botnet 5 | . . . . . . . . . 1 1 . . 1 . . . . . 1 . 1 Sabotage 1 | . . . . . . . . . . . . . 1 . . . . . . . . Fabricators 5 | . . . . 1 . . . . 1 . . . . 2 . . . . 1 . . Liberate 4 | . . . . 1 . . . . 1 . . . . 1 . . . . 1 . . Haulers 1 | . . . . . . . . . . . . . . 1 . . . . . . . Repair Stations 3 | . . . . 1 . . . . . . . . . 1 . . . . 1 . . Recycling Units . | . . . . . . . . . . . . . . . . . . . . . . Scrapoids 3 | . . . . 1 . . . . . . . . . 1 . . . . 1 . . Scanalyzers . | . . . . . . . . . . . . . . . . . . . . . . Garrison Access 1 | . . . . . . . . . . . . . . . . . . . . 1 . Jam 1 | . . . . . . . . . . . . . . . . . . . . 1 . Data Cores Recovered 2 | . . . . 1 . . . . . . . . . 1 . . . . . . . Used . | . . . . . . . . . . . . . . . . . . . . . . Hacking Detections 47 | . 2 . . 6 . 1 . . 8 5 1 . 1 9 . . . . 5 1 8 Full Trace Events 6 | . . . . 1 . . . . . 1 . . . . . . . . . . 4 Feedback Events . | . . . . . . . . . . . . . . . . . . . . . . Feedback Blocked . | . . . . . . . . . . . . . . . . . . . . . . Robot Schematics Acquired 3 | . . . . . . . 3 . . . . . . . . . . . . . . Robots Built . | . . . . . . . . . . . . . . . . . . . . . . Authchips . | . . . . . . . . . . . . . . . . . . . . . . Time . | . . . . . . . . . . . . . . . . . . . . . . Total Robot Build Rating . | . . . . . . . . . . . . . . . . . . . . . . Part Schematics Acquired 11 | . . . . . . . 11 . . . . . . . . . . . . . . Parts Built . | . . . . . . . . . . . . . . . . . . . . . . Authchips . | . . . . . . . . . . . . . . . . . . . . . . Time . | . . . . . . . . . . . . . . . . . . . . . . Total Part Build Rating . | . . . . . . . . . . . . . . . . . . . . . . Parts Repaired 6 | . . . . . . . . . 5 . . . . . . . . . 1 . . Time 211 | . . . . . . . . . 186 . . . . . . . . . 25 . . Parts Recycled . | . . . . . . . . . . . . . . . . . . . . . . Recycled Matter . | . . . . . . . . . . . . . . . . . . . . . . Retrieved Matter . | . . . . . . . . . . . . . . . . . . . . . . Retrieved Components . | . . . . . . . . . . . . . . . . . . . . . . Parts Scanalyzed . | . . . . . . . . . . . . . . . . . . . . . . Part Schematics Acquired . | . . . . . . . . . . . . . . . . . . . . . . Parts Damaged . | . . . . . . . . . . . . . . . . . . . . . . Bothacking | -11 -10 -10 -8 -6 -6 -6 -6 -5 -5 -5 -5 -5 -5 -4 -4 -4 -4 -3 -3 -2 -1 ------------ Run | Yrd Mat Sub Scr Fac Low Low Dat Pro Fac Ext Cet Arc Hub Fac Upp Upp War Pro Res Res Acc Used RIF Installer . | . . . . . . . . . . . . . . . . . . . . . . Robots Hacked 10 | . . . . . . . 1 . . 1 . 1 . . . . 1 . 1 . 5 Non-combat 1 | . . . . . . . . . . . . 1 . . . . . . . . . Combat 3 | . . . . . . . 1 . . 1 . . . . . . 1 . . . . Robot Hacks Applied 4 | . . . . . . . 1 . . 1 . 1 . . . . 1 . . . . parse_system 3 | . . . . . . . 1 . . 1 . . . . . . 1 . . . . check_alert 1 | . . . . . . . . . . . . 1 . . . . . . . . . Manual 6 | . . . . . . . . . . . . . . . . . . . 1 . 5 Relay Couplers Released 5 | . . . . . . . . . . . . . 3 . . . . . . . 2 Machine Destruction 5 | . . . . . . . . . . . . . 3 . . . . . . . 2 Fabnet Peak Effective % . | . . . . . . . . . . . . . . . . . . . . . . Robots Rewired 21 | . . . . . . . . . . 21 . . . . . . . . . . . Allies Hacked 2 | . . . . . . . . . . . . . . 2 . . . . . . . Hacks Repelled . | . . . . . . . . . . . . . . . . . . . . . . Allies | -11 -10 -10 -8 -6 -6 -6 -6 -5 -5 -5 -5 -5 -5 -4 -4 -4 -4 -3 -3 -2 -1 -------- Run | Yrd Mat Sub Scr Fac Low Low Dat Pro Fac Ext Cet Arc Hub Fac Upp Upp War Pro Res Res Acc Total Allies 56 | . . . . 7 . . . . . 28 5 . . 5 . . . . 6 . 5 Largest Group 26 | . . . . 6 4 1 . . . 25 26 23 18 11 . . . . 6 6 3 Highest-Rated Group 1227 | . . . . 186 112 28 . . . 850 1227 1152 878 652 . . . . 346 346 458 Highest-Rated Ally 219 | . . . . 37 28 28 . . . 159 159 159 96 96 . . . . 67 67 219 Total Orders 9 | . . . . . . . . . . 2 . . 6 1 . . . . . . . STAY 6 | . . . . . . . . . . 1 . . 4 1 . . . . . . . FOLLOW 3 | . . . . . . . . . . 1 . . 2 . . . . . . . . Ally Attacks 615 | . . . . 52 38 21 . . . 89 42 50 27 148 . . . . . 77 71 Total Damage 17334 | . . . . 905 667 319 . . . 1702 751 1634 480 3297 . . . . . 1665 5914 Kills 100 | . . . . 6 3 1 . . . 9 5 5 5 25 . . . . . 6 35 Allies Corrupted 4 | . . . . . . . . . . . . . 3 1 . . . . . . . Allies Melted . | . . . . . . . . . . . . . . . . . . . . . . Intel | -11 -10 -10 -8 -6 -6 -6 -6 -5 -5 -5 -5 -5 -5 -4 -4 -4 -4 -3 -3 -2 -1 ------- Run | Yrd Mat Sub Scr Fac Low Low Dat Pro Fac Ext Cet Arc Hub Fac Upp Upp War Pro Res Res Acc Active Infowar (turns) 3528 | . . . . . . . . . 210 16 . . . 10 . . 486 . 870 415 1521 Optics 2519 | . . . . . . . . . . . . . . . . . . . 870 415 1234 Terrain 1667 | . . . . . . . . . . . . . . . . . . . . 400 1267 Structural 485 | . . . . . . . . . . . . . . . . . 485 . . . . Cloaking 1 | . . . . . . . . . . . . . . . . . 1 . . . . Jamming 248 | . . . . . . . . . 210 16 . . . 10 . . . . 12 . . Robot Analysis Total 2 | . 1 . . . . . . . . . . . . 1 . . . . . . . Derelict Logs Recovered 11 | . . . 4 . 2 2 . 1 . . . . . . 1 1 . . . . . Drone Launches . | . . . . . . . . . . . . . . . . . . . . . . Drone Recoveries . | . . . . . . . . . . . . . . . . . . . . . . Exploration | -11 -10 -10 -8 -6 -6 -6 -6 -5 -5 -5 -5 -5 -5 -4 -4 -4 -4 -3 -3 -2 -1 ------------- Run | Yrd Mat Sub Scr Fac Low Low Dat Pro Fac Ext Cet Arc Hub Fac Upp Upp War Pro Res Res Acc Turns Passed 37832 | 140 668 3370 3728 948 6283 5595 227 1967 1638 2055 388 508 358 2039 1064 780 1172 754 871 415 2864 Spaces Moved 16867 | 66 360 1752 1832 341 2363 2129 88 551 791 900 178 174 132 1062 650 496 660 366 501 218 1257 Core 22 | 1 . . . . . . . . . . . . . . . . . . . . 21 Treads 9423 | 65 360 1752 1767 341 2363 2129 88 551 . 5 . . . . . . . . . 1 1 Legs . | . . . . . . . . . . . . . . . . . . . . . . Wheels 7422 | . . . 65 . . . . . 791 895 178 174 132 1062 650 496 660 366 501 217 1235 Hover . | . . . . . . . . . . . . . . . . . . . . . . Flight . | . . . . . . . . . . . . . . . . . . . . . . Fastest Speed 50 | 50 160 160 120 246 246 255 255 255 150 150 150 160 160 150 150 150 150 150 150 150 50 Average Speed 192 | 158 160 160 201 246 247 255 255 255 150 158 159 160 160 165 150 150 150 150 150 151 165 Slowest Speed 460 | 160 160 160 360 246 255 255 255 255 150 460 160 160 160 170 150 150 150 150 150 320 360 Overloaded Moves . | . . . . . . . . . . . . . . . . . . . . . . Propulsion Burnouts . | . . . . . . . . . . . . . . . . . . . . . . Robots Hopped . | . . . . . . . . . . . . . . . . . . . . . . Cave-ins Triggered . | . . . . . . . . . . . . . . . . . . . . . . Exploration Rate (%) 54 | 5 63 66 91 14 99 99 74 68 19 87 63 86 13 23 77 54 84 52 16 9 31 Regions Visited 21 Branch Regions 14 Pre-discovered Areas 13 | . . 1 6 . 2 1 1 . . . . . . . . 1 1 . . . . Known Exits Taken 10 | . . . . 1 1 1 . 1 1 . . . 1 1 1 . 1 1 . . . Unknown Exits Taken 11 | 1 1 1 1 . . . 1 . . 1 1 1 . . . 1 . . 1 1 . Scrap Searched 30 | . . 2 13 . 3 4 . 1 . . . . . . 2 2 . 3 . . . Spaces Dug 141 | . . 38 . 4 . 1 . . 6 41 . . . 16 . . . 3 3 . 29 Terrain Destroyed 795 | . 28 38 . 4 25 1 . 24 44 134 2 10 . 73 27 2 113 7 19 8 236 Melee 51 | . . 35 . 4 . 1 . . 6 . . . . 2 . . . . 3 . . Projectile 322 | . . 3 . . . . . 4 11 54 2 10 . 31 26 2 5 6 2 8 158 AOE 407 | . 28 . . . 25 . . 20 25 79 . . . 40 . . 108 . 14 . 68 Terrain Rammed . | . . . . . . . . . . . . . . . . . . . . . . Walls Destroyed . | . . . . . . . . . . . . . . . . . . . . . . Machines Disabled . | . . . . . . . . . . . . . . . . . . . . . . Actions | -11 -10 -10 -8 -6 -6 -6 -6 -5 -5 -5 -5 -5 -5 -4 -4 -4 -4 -3 -3 -2 -1 --------- Run | Yrd Mat Sub Scr Fac Low Low Dat Pro Fac Ext Cet Arc Hub Fac Upp Upp War Pro Res Res Acc Total 20910 | 89 431 2097 1877 418 2769 2242 90 1085 1106 1366 253 387 279 1262 701 519 794 540 601 271 1733 Wait 2533 | 3 30 135 1 28 345 21 . 513 194 288 33 192 148 108 9 17 74 143 54 19 178 Move 16845 | 65 359 1751 1831 340 2362 2128 87 550 790 899 177 173 131 1061 649 495 659 365 500 217 1256 Hop . | . . . . . . . . . . . . . . . . . . . . . . Pick Up 161 | 9 9 18 23 13 9 8 . 1 15 4 3 3 . 10 3 1 6 2 6 4 14 Fast Attach 81 | 6 3 3 1 . 7 2 . 1 5 5 7 1 . 12 8 . 5 1 4 4 6 Attach 53 | . . 1 . 8 3 4 . . 5 1 1 1 . 1 . . 2 . 3 2 21 Detach 26 | . . . . . 1 3 . . 2 . 3 1 . 3 4 . 3 . . 1 5 Swap 231 | . 3 26 6 5 9 11 2 7 20 22 6 6 . 18 3 . 17 9 15 2 44 Drop 224 | 1 11 20 15 6 20 30 . 2 17 16 12 2 . 19 11 1 9 3 10 7 12 Fire 553 | 5 15 88 . 12 13 20 . 11 49 63 11 5 . 28 14 5 18 12 5 13 166 Melee 135 | . . 54 . 4 . 15 1 . 9 38 . 3 . 2 . . 1 4 4 . . Ram . | . . . . . . . . . . . . . . . . . . . . . . Kick . | . . . . . . . . . . . . . . . . . . . . . . Crush 3 | . 1 . . 2 . . . . . . . . . . . . . . . . . Escape Stasis 34 | . . . . . . . . . . 18 . . . . . . . . . 2 14 Rewire 14 | . . 1 . . . . . . . 12 . . . . . . . . . . 1 Trap . | . . . . . . . . . . . . . . . . . . . . . . Miscellaneous 17 | . . . . . . . . . . . . . . . . . . 1 . . 16 Route ------- -11/Scrapyard -10/Materials (discovered 4 exits: [*Mat x2] / [*Min] / *Sub) -10/Subcaves (discovered 3 exits: [*Mat x2] / *Scr) -8/Scraptown (discovered 2 exits: *Fac x2) -6/Factory (discovered 4 exits: Fac x2 / *Low x2) -6/Lower Caves -6/Lower Caves (discovered 2 exits: *Fac / *Dat) -6/Data Miner -5/Proximity Caves -5/Factory (discovered 6 exits: Fac x2 / Upp x2 / *Ext x2) -5/Extension (discovered 2 exits: *Fac / *Cet) -5/Cetus (discovered 2 exits: *Fac / [*Arc]) -5/Archives (discovered 3 exits: *Fac / *Hub x2) -5/Hub_04(d) -4/Factory (discovered 6 exits: Res x3 / *Upp x2 / Arm) -4/Upper Caves -4/Upper Caves -4/Warlord -3/Proximity Caves -3/Research -2/Research (discovered 2 exits: *Acc / Tes) -1/Access (discovered 2 exits: *Sur / [Com]) To Epsilon Eridani History --------- Turn | Location | Event 13 | -11/Scrapyard | Discovered new exit (range 15) 141 | -11/Scrapyard | Entered Materials 142 | -10/Materials | Met a group of wandering Federalists 313 | -10/Materials | Build established: Mutant 390 | -10/Materials | Discovered new exit (range 12) 514 | -10/Materials | Discovered new exit (range 13) 616 | -10/Materials | Discovered new exit (range 8) 800 | -10/Materials | Discovered new exit (range 6) 809 | -10/Materials | Entered Subcaves 810 | -10/Subcaves | Continued accompanying wandering Federalists (4) 810 | -10/Subcaves | Approached by a straggling Scientist 869 | -10/Subcaves | Learned location of Zion (-7) 869 | -10/Subcaves | Met a Zionite searching for "candidates" 1383 | -10/Subcaves | Visited Clippyterm 1388 | -10/Subcaves | Learned Factory fabricator intel 1388 | -10/Subcaves | Learned Factory trap positions 1464 | -10/Subcaves | Shifting Twisted Machinery released Sub. Laser 1540 | -10/Subcaves | Shifting Twisted Machinery released Sub. Machine Gun 1949 | -10/Subcaves | Shifting Twisted Machinery released Spk. Treads 1973 | -10/Subcaves | Shifting Twisted Machinery released Sub. Laser 2485 | -10/Subcaves | Discovered new exit (range 10) 2534 | -10/Subcaves | A swath of the cavern ceiling suddenly collapsed 2788 | -10/Subcaves | Discovered new exit (range 12) 3555 | -10/Subcaves | Disturbed a concealed Subdweller 3563 | -10/Subcaves | Core integrity fell below 50% 4119 | -10/Subcaves | Visited 4L-MR0's lab 4179 | -10/Subcaves | Entered Scraptown 4563 | -8/Scraptown | Discovered new exit (range 11) 4618 | -8/Scraptown | Build established: Derelict-Mutant 4643 | -8/Scraptown | Scanned Subdweller tech in exchange for log data 4646 | -8/Scraptown | Learned location of Armory (-4) 4648 | -8/Scraptown | Learned Research terminal intel 4649 | -8/Scraptown | Learned Factory stockpile data 4744 | -8/Scraptown | Heard Great Nut preacher, LISTEN AND RECITE! 4750 | -8/Scraptown | Visited Fellowship of the Rings 4763 | -8/Scraptown | Visited CR-KLE's Repair Center 4788 | -8/Scraptown | Visited Symbiants 4907 | -8/Scraptown | Visited Bundlers 4995 | -8/Scraptown | Visited IN-MT5's Study 5254 | -8/Scraptown | Visited Cyclists 5289 | -8/Scraptown | Visited Shadow of the Wyrm 5350 | -8/Scraptown | Visited UFD Registry 5350 | -8/Scraptown | Registered with UFD as "Hellmech" 5425 | -8/Scraptown | Visited Abandonware Association 5446 | -8/Scraptown | Learned abandonware demo "OVRCLOCK.EXE" 5457 | -8/Scraptown | Learned abandonware demo "REPAIR.EXE" 5519 | -8/Scraptown | Visited Sword Containment 5537 | -8/Scraptown | Visited DA-N13 Charitable Foundation 5551 | -8/Scraptown | Found DCF Scrap (31 items) 5595 | -8/Scraptown | Visited Derelict Rescue Squad 5694 | -8/Scraptown | Visited Observation Area 5781 | -8/Scraptown | Delivered Scrap Shield to a Scientist 5953 | -8/Scraptown | Visited Chapter 10 5977 | -8/Scraptown | Visited LU-1G1's Boring Crew 6008 | -8/Scraptown | Visited Supply Room 6065 | -8/Scraptown | Visited Cartography Club 6096 | -8/Scraptown | Found Surveybot 17 Chip 6155 | -8/Scraptown | Learned location of Storage (-8) 6155 | -8/Scraptown | Learned location of Proximity Caves (-5) 6155 | -8/Scraptown | Learned 16 Materials zone layouts 6155 | -8/Scraptown | Learned 24 Factory zone layouts 6155 | -8/Scraptown | Learned 8 Proximity Caves zone layouts 6155 | -8/Scraptown | Learned 20 Proximity Caves zone layouts 6155 | -8/Scraptown | Learned 24 Proximity Caves zone layouts 6155 | -8/Scraptown | Learned Factory emergency access door positions 6155 | -8/Scraptown | Learned location of 1 exit from Lower Caves 6155 | -8/Scraptown | Learned location of 2 exits from Proximity Caves 6155 | -8/Scraptown | Learned location of 3 exits from Proximity Caves 6188 | -8/Scraptown | Found Deep Structural Scanner 6315 | -8/Scraptown | Entered Cyclist Reading Room 6393 | -8/Scraptown | CR-KLE repaired 6 parts 7450 | -8/Scraptown | Found DRS Beacon 7757 | -8/Scraptown | Found Scrap Suit 7812 | -8/Scraptown | Found Scrap Suit 7896 | -8/Scraptown | Discovered new exit (range 3) 7907 | -8/Scraptown | Entered Factory 7907 | -6/Factory | Evolved 8 slots: Propulsion x2, Utility x2, Weapon x4 7908 | -6/Factory | Identified exit to Lower Caves 7909 | -6/Factory | Identified exit to Factory 7910 | -6/Factory | Loaded intel: 113 trap records 7913 | -6/Factory | Loaded intel: 6 fabricator locations 7998 | -6/Factory | Garrison activated, responded to threat 8260 | -6/Factory | Scrapoid reinforcements arrived 8448 | -6/Factory | Build established: Derelict-Executioner 8855 | -6/Factory | Entered Lower Caves 8855 | -6/Lower Caves | Accompanied by 4 allies 8856 | -6/Lower Caves | Identified exit to Lower Caves 8857 | -6/Lower Caves | UFD Scientist delivered a prototype 8861 | -6/Lower Caves | Found Prototype Protection 8861 | -6/Lower Caves | Identified Enh. Scrap Shield 8884 | -6/Lower Caves | Encountered a Warlord checkpoint 9289 | -6/Lower Caves | Spotted B-75 Beast 9302 | -6/Lower Caves | Allies destroyed B-75 Beast 9449 | -6/Lower Caves | Attracted the attention of an 0b10 checkpoint 13246 | -6/Lower Caves | Build established: Cobbler-Executioner 15138 | -6/Lower Caves | Entered another Lower Caves area 15138 | -6/Lower Caves | Accompanied by 1 ally 15139 | -6/Lower Caves | Identified exit to Data Miner 15310 | -6/Lower Caves | Discovered exit to Factory (range 15) 15898 | -6/Lower Caves | Spotted B-75 Beast 16200 | -6/Lower Caves | Allies destroyed B-75 Beast 17088 | -6/Lower Caves | Learned Factory stockpile data 17421 | -6/Lower Caves | Found Alien Artifact 17421 | -6/Lower Caves | Identified Core Expander 17421 | -6/Lower Caves | Installed Core Expander, added new Weapon slot 17516 | -6/Lower Caves | Attracted the attention of an 0b10 checkpoint 20733 | -6/Lower Caves | Entered Data Miner 20733 | -6/Data Miner | Discovered new exit (range 6) 20782 | -6/Data Miner | Met Data Miner 20863 | -6/Data Miner | Learned location of Section 7 (-2) 20863 | -6/Data Miner | Acquired the access code to Warlord's prototype stash 20899 | -6/Data Miner | Received God Mode back door access code from Data Miner 20960 | -6/Data Miner | Entered Proximity Caves 21067 | -5/Proximity Caves | Spotter reported a threat 21068 | -5/Proximity Caves | Spotter reported a threat 22636 | -5/Proximity Caves | Learned 8 Factory zone layouts 22711 | -5/Proximity Caves | Attracted the attention of an 0b10 checkpoint 22927 | -5/Proximity Caves | Entered Factory 22927 | -5/Factory | Evolved 2 slots: Utility x2 22928 | -5/Factory | Identified exit to Factory 23746 | -5/Factory | Identified exit to Upper Caves 23746 | -5/Factory | Identified exit to Extension 23872 | -5/Factory | Build established: Derelict-Executioner 24157 | -5/Factory | Repaired Spk. Treads 24276 | -5/Factory | Repaired Imp. Grenade Launcher? 24352 | -5/Factory | Repaired Spk. Treads 24409 | -5/Factory | Repaired KE Penetrator 24454 | -5/Factory | Repaired Hvy. Battle Rifle 24511 | -5/Factory | Garrison activated, responded to threat 24565 | -5/Factory | Entered Extension 25151 | -5/Extension | Build established: Scavenger-Executioner 25190 | -5/Extension | Disrupted transfer network 25380 | -5/Extension | Rescued a captive Derelict 25381 | -5/Extension | Rescued a captive Derelict 25431 | -5/Extension | Spotted B-75 Beast 25451 | -5/Extension | Destroyed B-75 Beast 25606 | -5/Extension | Rescued a captive Derelict 25731 | -5/Extension | Rescued a captive Derelict 25852 | -5/Extension | Build established: Commander-Executioner 25988 | -5/Extension | Spotted B-75 Beast 25995 | -5/Extension | Allies destroyed B-75 Beast 26089 | -5/Extension | Rescued A7 26096 | -5/Extension | Rescued a captive Derelict 26501 | -5/Extension | Rescued a captive Derelict 26546 | -5/Extension | Discovered exit to Factory (range 10) 26548 | -5/Extension | Discovered new exit (range 6) 26620 | -5/Extension | Entered Cetus 26620 | -5/Cetus | Accompanied by 24 allies (A7) 26625 | -5/Cetus | Acquired a Cetus Manufacturing Module code from A7 26642 | -5/Cetus | Spotted Cetus Guard 26642 | -5/Cetus | Spotted Cetus Guard 26644 | -5/Cetus | Spotted Cetus Guard 26645 | -5/Cetus | Spotted Cetus Guard 26646 | -5/Cetus | Allies destroyed Cetus Guard 26651 | -5/Cetus | Destroyed Cetus Guard 26662 | -5/Cetus | Destroyed Cetus Guard 26662 | -5/Cetus | Allies destroyed Cetus Guard 26688 | -5/Cetus | Lost 3 allies 26772 | -5/Cetus | Started Cetus Manufacturing Module 26788 | -5/Cetus | Escorted A7 to Cetus Mainframe 26797 | -5/Cetus | Manufactured an Enhanced Grunt 26808 | -5/Cetus | Discovered new exit (range 15) 26822 | -5/Cetus | Manufactured an Enhanced Grunt 26842 | -5/Cetus | Spotted Cetus Guard 26843 | -5/Cetus | Spotted Cetus Guard 26846 | -5/Cetus | Spotted Cetus Guard 26847 | -5/Cetus | Manufactured an Enhanced Grunt 26847 | -5/Cetus | Allies destroyed Cetus Guard 26848 | -5/Cetus | Destroyed Cetus Guard 26849 | -5/Cetus | Allies destroyed Cetus Guard 26850 | -5/Cetus | Spotted Cetus Guard 26857 | -5/Cetus | Destroyed Cetus Guard 26872 | -5/Cetus | Manufactured an Enhanced Grunt 26873 | -5/Cetus | Discovered exit to Factory (range 15) 26881 | -5/Cetus | Met Revision 17 26897 | -5/Cetus | Manufactured an Enhanced Grunt 27008 | -5/Cetus | Entered Archives 27008 | -5/Archives | Accompanied by 23 allies (A7) 27013 | -5/Archives | Received a hacking code to weaken MAIN.C 27091 | -5/Archives | Discovered exit to Factory (range 15) 27162 | -5/Archives | Discovered new exit (range 15) 27189 | -5/Archives | Discovered new exit (range 15) 27516 | -5/Archives | Entered Hub_04(d) 27516 | -5/Hub_04(d) | Accompanied by 18 allies 27823 | -5/Hub_04(d) | Network Hub disabled 27840 | -5/Hub_04(d) | Discovered exit to Factory (range 16) 27856 | -5/Hub_04(d) | Lost 7 allies 27874 | -5/Hub_04(d) | Entered Factory 27874 | -4/Factory | Accompanied by 11 allies 27874 | -4/Factory | Evolved 2 slots: Power x1, Utility x1 27875 | -4/Factory | Identified exit to Research 28762 | -4/Factory | Lost 4 allies 28765 | -4/Factory | Identified exit to Upper Caves 28765 | -4/Factory | Identified exit to Armory 29034 | -4/Factory | Build established: Scavenger-Executioner 29522 | -4/Factory | Scrapoids reinforcements arrived? 29595 | -4/Factory | Lost 4 allies 29659 | -4/Factory | First assault squad dispatched 29913 | -4/Factory | Entered Upper Caves 30070 | -4/Upper Caves | Attracted the attention of an 0b10 checkpoint 30074 | -4/Upper Caves | Attracted the attention of an 0b10 base 30129 | -4/Upper Caves | Destroyed 8 combat bots 30134 | -4/Upper Caves | Learned 8 Research zone layouts 30134 | -4/Upper Caves | Identified exit to Upper Caves 30205 | -4/Upper Caves | Attacked by a delusional Derelict stockpiling parts 30643 | -4/Upper Caves | Learned Research stockpile data 30711 | -4/Upper Caves | Encountered a Warlord checkpoint 30977 | -4/Upper Caves | Entered another Upper Caves area 31073 | -4/Upper Caves | Attracted the attention of an 0b10 checkpoint 31404 | -4/Upper Caves | Discovered new exit (range 13) 31424 | -4/Upper Caves | Learned location of Quarantine (-3) 31757 | -4/Upper Caves | Entered Warlord 31758 | -4/Warlord | Identified exit to Proximity Caves 31992 | -4/Warlord | Learned 4 Research zone layouts 31993 | -4/Warlord | Learned Research security intel 31993 | -4/Warlord | Learned Testing security intel 32282 | -4/Warlord | Rebuked by Warlord 32299 | -4/Warlord | Warlord's base attacked by MAIN.C 32366 | -4/Warlord | Opened Warlord's prototype stash 32382 | -4/Warlord | Found Prototype Processor 32382 | -4/Warlord | Identified Exp. Core Analyzer 32390 | -4/Warlord | Found Prototype Device 32390 | -4/Warlord | Identified Exp. Cloaking Device 32399 | -4/Warlord | Found Prototype Reactor 32399 | -4/Warlord | Identified Vortex Chain Reactor 32587 | -4/Warlord | Destroyed 9 combat bots 32649 | -4/Warlord | Warlord forces counterattacked 32671 | -4/Warlord | Lost 3 allies 32741 | -4/Warlord | Opened side exit 32768 | -4/Warlord | Spotted Striker 32857 | -4/Warlord | Lost 11 allies 32929 | -4/Warlord | Entered Proximity Caves 32940 | -3/Proximity Caves | Lost 3 allies 32943 | -3/Proximity Caves | Build established: Derelict-Executioner 33128 | -3/Proximity Caves | Activated DRS Beacon 33585 | -3/Proximity Caves | Build established: Scavenger-Executioner 33626 | -3/Proximity Caves | Received a Behemoth hack from an annoying Tinkerer 33677 | -3/Proximity Caves | Attracted the attention of an 0b10 checkpoint 33683 | -3/Proximity Caves | Entered Research 33683 | -3/Research | Evolved 2 slots: Utility x2 33687 | -3/Research | Loaded intel: 25 terminal locations 33883 | -3/Research | Revision forces began assault on 0b10 33905 | -3/Research | Met up with Revision 17++ 33987 | -3/Research | Repaired Lrn. Missile Launcher 34198 | -3/Research | Discovered new exit (range 3) 34383 | -3/Research | Research terminal network offline 34473 | -3/Research | Scrapoid reinforcements arrived 34554 | -3/Research | Entered another Research area 34554 | -2/Research | Accompanied by 6 allies 34554 | -2/Research | Evolved 2 slots: Utility x2 34555 | -2/Research | Identified exit to Testing 34805 | -2/Research | Allied Derelicts emerged from ambush trap array 34849 | -2/Research | Discovered new exit (range 18) 34907 | -2/Research | Found Scrap Suit 34920 | -2/Research | Lost 4 allies 34938 | -2/Research | Found Scrap Suit 34969 | -2/Research | Entered Access 34969 | -1/Access | Accompanied by 1 ally 34969 | -1/Access | Evolved 2 slots: Power x1, Utility x1 35219 | -1/Access | First assault squad dispatched 35533 | -1/Access | Found Prototype Hackware 35535 | -1/Access | Identified Exp. System Shield 35658 | -1/Access | Discovered new exit (range 13) 35814 | -1/Access | Spotted B-99 Colossus 35990 | -1/Access | Identified exit to Surface 36666 | -1/Access | Spotted B-99 Colossus 36670 | -1/Access | Befriended a Behemoth using the annoying Tinkerer's hack 36674 | -1/Access | Spotted B-99 Colossus 36676 | -1/Access | Befriended a Behemoth using the annoying Tinkerer's hack 36721 | -1/Access | Allied Derelicts emerged from ambush trap array 36934 | -1/Access | Lost 3 allies 37222 | -1/Access | Garrison activated, responded to threat 37231 | -1/Access | High security lockdown imminent 37311 | -1/Access | High security lockdown engaged 37503 | -1/Access | Spotted Striker 37511 | -1/Access | Destroyed Striker 37512 | -1/Access | Spotted Executioner 37514 | -1/Access | Destroyed Executioner 37554 | -1/Access | Spotted Executioner 37554 | -1/Access | Destroyed Executioner 37598 | -1/Access | Spotted Investigator 37601 | -1/Access | Scanned by Researcher 37614 | -1/Access | Destroyed Investigator 37640 | -1/Access | Found Exp. Core Analyzer 37646 | -1/Access | Destroyed Investigator 37649 | -1/Access | Spotted Executioner 37692 | -1/Access | Destroyed Executioner 37713 | -1/Access | Destroyed 26 combat bots 37718 | -1/Access | Lost 3 allies 37733 | -1/Access | Spotted Executioner 37743 | -1/Access | Spotted Striker 37743 | -1/Access | Spotted Executioner 37743 | -1/Access | Spotted Executioner 37827 | -1/Access | Core integrity fell below 50% 37833 | *** | Escaped! Last Messages --------------- 37815_ Slug penetrates Wall. 37817_ The unstable cave ceiling collapses. 37817_ P-80 Master destroyed. 37817_ Destroyed Lgt. Angular Momentum Engine. 37817_ M-36 Artificer destroyed. 37817_ Critical hit (Burn: +37). 37817_ H-88 Terminator suffers critical hit (Burn). 37818_ Penetrated by Slug. 37818_ Slug penetrates G-73 Enforcer. 37818_ Adv. Variable Charge Gun destroyed. 37820_ Lrn. Missile Launcher destroyed. 37821_ Penetrated by Slug. 37822_ Imp. Quantum Reactor destroyed. 37822_ Penetrated by Slug. 37822_ Lrn. Missile Launcher destroyed. 37823_ Dropped Huge Storage Unit. 37825_ The unstable cave ceiling collapses. 37825_ M-36 Artificer repairs G-73 Enforcer. 37827_ System corrupted: Energy discharge (-30). 37827_ M-36 Artificer repairs Unknown Reactor. Map ----- +----------------------------------------------------+ | ???############## ##### "" ###? | | ? ############## ##### "" ### | | ###############################""""" ### | | ################## ############"" """ ### | | ################## ############ ""[= ### | | ##################### ####### #### "%* ### | | ##################### ###### ##### [ ### | | ##################### ##### ###### ### | | ##################### #### ####### ! ### | | ##################### ### ## ###[==! ### | | # ###############################+############ | | # * *! = !!|%*|!%%!%[!!# # | | # ! [ * ! %=!!!%%*[==" # | | # ##########/##### * ! !! "##"####|!# ##### | | ## ##### # # ["####### !########## | | ## ##### ### "%####### ####### | | ## ##### ### T####### ####### | | ## ##### ### !""####### ####### | | ## ##### ### ""####### ####### " | | ## ##### ### ""####### ####### | | ## ##### ##"""""""" "###### ####### | | ##### ### ####### ####### | | ##### """"" ### ####### ####### | | ##### """"" ### " ####### ####### | | ##### """"" ### " " ####### ########## | | ##### """"" ### " @" " ####### ########## | | ? ##### """"" ### " "" " ####### # | | ##?## """"" ### " " ####### # | | ## ##### ### """""" ####### # = " | | ?# #?### ### ####### # """ | | ??? #################""""""""" ####### + """ | | ????#?###############""""""""" ####### # " | | ??????###############""""""""" ####### # | | ????????##?##########""""""""" ####### # | | ?? ??????#???#######% ####### ########## | | ?? ???????????#?#### ####### # ### | | ?? #?????????????### ####### # ### | | ?# #?????????????###% ####### # ## | | ?# #?????????????### ####### # ## | | ?# #????????????#### ####### # ## | | ?# #????????????#### # ##### # ## | | ?# #????????????###### ! ##### # ## | | ?# #???????????###### | # # ## | | ## #???????????####### = % # # ## | | #???????????####### %[ ! # # ## | | #??????????### % # ###+###### | | ##########??## # + *%[ | | # ##### ! # # =%=! | | + """"# # " ########+#### | | # !! / + # !" # ! % | +----------------------------------------------------+ Best States ------------- Heat Dissipation 83 Coolant Potential 65 Energy Generation 71 Energy Capacity 840 Matter Stores 300 Matter Capacity 300 Sight Range 22 Terrain Scan Range 18 Terrain Scan Density 1210 Jamming Range 16 Corruption Containment 12 Corruption Block 20 Armor Coverage 1600 Evasion (%) 50 Targeting Accuracy 8 Core Analysis 12 Recoil Reduction 8 Offensive Hacking 36 Defensive Hacking 16 Item Schematics ----------------- Combat Drone Bay | -6/Data Miner | Free Lgt. Regenerative Plating | -6/Data Miner | Free Cld. Nuclear Pulse Thruster | -6/Data Miner | Free Imp. Matter Compressor | -6/Data Miner | Free Neutron Cannon | -6/Data Miner | Free Hvy. Siege Treads | -6/Data Miner | Free Imp. Force Field | -6/Data Miner | Free Matter Neutralizer | -6/Data Miner | Free KE Penetrator | -6/Data Miner | Free Adv. Cryofiber Web | -6/Data Miner | Free Q-thruster | -6/Data Miner | Free Robot Schematics ------------------ R-10 Processor | -6/Data Miner | Free B-48 Gladiator | -6/Data Miner | Free S-27 Virus | -6/Data Miner | Free Fabricated ------------ Nothing Repaired ---------- Spk. Treads | 19% | -5/Factory Imp. Grenade Launcher | 17% | -5/Factory Spk. Treads | 46% | -5/Factory KE Penetrator | 47% | -5/Factory Hvy. Battle Rifle | 61% | -5/Factory Lrn. Missile Launcher | 50% | -3/Research Alien Tech Used ----------------- Core Expander Achievements -------------- None Challenges ------------ None Game ------ Seed BarrageBehemothCannon Manual? 0 Play Time 03:20:38 Cumulative 1719.3 hours Start 2024.11.09 @ 16:48:57 End 2024.11.10 @ 20:03:54 Sessions 5 Manual Loads 0 Difficulty Rogue Special Mode None Game No. 1162 Rogue 1158 Adventurer 4 Explorer 0 Win Type 0 Total 217 Types 162/11/15/9/3/1/4/8/4 Lore% 98 Gallery% 98 Achievement% 98 Wizard Run 0 Options --------- Layout 2 ASCII 0 Keyboard 1 Movement Vi Keybinds 0 Fullscreen 0 Font 24/Terminus Map View 59x48 Zoom Use 0% Tactical HUD 1 Map Filters NONE Filters NONE Steam 1 RUN: 1b3b97ed-64a8-428a-8a64-ff9a30462c59